Cogmind - Beta 13 @@@ ROGUE MODE // 2024.04.15 @ 23:38:03 Player: hanna Result: Destroyed by H-55 Commando with Gauss Rifle Performance ------------- Evolutions (2) 1000 Regions Visited (5) 1000 Robots Destroyed (44) 220 Value Destroyed (882) 882 Prototype IDs (0) 0 Alien Tech Used (0) 0 Bonus (109) 109 TOTAL SCORE: 3211 Bonus ------- Follower Combat Kills 109 Cogmind --------- Core Integrity 0/550 Matter 140/300 Energy 100/100 System Corruption 0% Temperature Cool (34) Movement Core (400) Ox7 Location -8/Materials Parts ------- > --- POWER (3) -------- (None) > --- PROPULSION (3) --- (None) > --- UTILITY (3) ------ Medium Storage Unit Field Recycling Unit > --- WEAPON (2) ------- Gauss Rifle > --- INVENTORY (10) --- Medium Matter Pod (0) Improved Sensor Array Weapon Shielding Light Armor Plating Particle Cannon High-powered Shotgun Maul Peak State ------------ > --- POWER ------------ Backup Power I Backup Power I Light Nuclear Core > --- PROPULSION ------- Wheel Wheel Wheel > --- UTILITY ---------- Medium Storage Unit Medium Armor Plating Field Recycling Unit > --- WEAPON ----------- Advanced Assault Cannon Advanced Assault Cannon > --- INVENTORY -------- Medium Matter Pod Sensor Array Weapon Shielding Light Armor Plating Particle Cannon High-powered Shotgun Maul [Rating: 22] Favorites ----------- Power Light Ion Engine Engine Light Ion Engine Power Core Light Nuclear Core Propulsion Light Treads Treads Light Treads Wheel Compact Wheel Hover Unit Hover Unit Utility Medium Storage Unit Device Field Recycling Unit Storage Medium Storage Unit Protection Weapon Shielding Weapon Light Assault Rifle Energy Gun EM Pulse Gun Energy Cannon Particle Cannon Ballistic Gun Light Assault Rifle Ballistic Cannon Advanced Assault Cannon Launcher Grenade Launcher Impact Weapon Maul Build | -11 -10 -10 -9 -9 -8 ------- Run | Yrd Mat Min Mat Min Mat Slots Evolved 4 | . . . 2 . 2 Power 2 | . . . 1 . 1 Propulsion 1 | . . . . . 1 Utility 1 | . . . 1 . . Weapon . | . . . . . . Parts Attached 58 | 7 14 2 22 3 10 Power 7 | 1 1 . 4 . 1 Engine 6 | 1 1 . 4 . . Core 1 | . . . . . 1 Reactor . | . . . . . . Propulsion 10 | 2 2 . 2 . 4 Treads 3 | . 1 . 2 . . Leg . | . . . . . . Wheel 6 | 2 . . . . 4 Hover 1 | . 1 . . . . Flight . | . . . . . . Utility 18 | 1 7 1 6 2 1 Device 9 | . 5 . 2 2 . Storage 2 | 1 1 . . . . Processor . | . . . . . . Hackware . | . . . . . . Protection 7 | . 1 1 4 . 1 Artifact . | . . . . . . Weapon 23 | 3 4 1 10 1 4 Energy Gun 3 | 1 . 1 1 . . Energy Cannon 2 | . . . 1 1 . Ballistic Gun 7 | 2 2 . 1 . 2 Ballistic Cannon 2 | . . . . . 2 Launcher 7 | . 2 . 5 . . Special Weapon . | . . . . . . Impact Weapon 2 | . . . 2 . . Slashing Weapon . | . . . . . . Piercing Weapon . | . . . . . . Special Melee Weapon . | . . . . . . Unidentified Prototypes . | . . . . . . Parts Lost 19 | . 4 . 6 . 9 Power 7 | . 1 . 3 . 3 Propulsion 6 | . 2 . 1 . 3 Utility 2 | . . . 1 . 1 Weapon 4 | . 1 . 1 . 2 Highest Loss Streak 9 | . 2 . 3 . 9 To Critical Strikes . | . . . . . . Average Slot Usage (%) 89 | . 93 85 86 94 85 Engine 16 | . 14 14 17 22 15 Core 1 | . . . . . 7 Treads 13 | . 4 14 18 22 9 Wheel 6 | . 16 . . . 9 Device 9 | . 7 10 10 11 9 Storage 12 | . 14 14 11 11 9 Protection 7 | . 6 3 9 11 7 Energy Gun 2 | . 5 3 3 . . Energy Cannon 1 | . . . . 6 4 Ballistic Gun 7 | . 15 14 1 . 1 Ballistic Cannon 1 | . . . . . 7 Launcher 6 | . 6 10 11 . . Impact Weapon 2 | . . . 2 11 5 Naked Turns . | . . . . . . Heaviest Build 44 | 11 20 18 32 28 44 Greatest Support 43 | 32 32 20 43 43 43 Greatest Overweight (x) 11 | . 3 . 1 . 11 Average Overweight (x) . | . . . . . . Largest Inventory Capacity 10 | 8 10 10 10 10 10 Average Capacity 9 | 7 8 10 10 10 10 Most Carried 10 | 2 10 10 10 10 10 Average Carried 8 | 1 7 9 9 9 8 Final Capacity 10 | 8 10 10 10 10 10 Final Carried 10 | 2 9 10 9 9 7 Class Distribution -------------------- 80% | Mutant 19% | Scavenger-Mutant Dominant Class ---------------- Mutant | -10/Materials Mutant | -10/Mines Scavenger-Mutant | -9/Materials Mutant | -9/Mines Mutant | -8/Materials Resources | -11 -10 -10 -9 -9 -8 ----------- Run | Yrd Mat Min Mat Min Mat Matter Collected 1009 | 156 231 35 212 68 307 Remotely . | . . . . . . Salvage Created 871 | . 295 . 247 37 292 Parts 82 | . 24 . 37 3 18 Haulers Intercepted 1 | . 1 . . . . Recyclers Shooed 2 | . 1 . . . 1 Parts Field Recycled 23 | . . . 8 1 14 Retrieved Matter 85 | . . . 14 2 69 Parts Self-Destructed . | . . . . . . Prevented . | . . . . . . Kills | -11 -10 -10 -9 -9 -8 ------- Run | Yrd Mat Min Mat Min Mat Combat Hostiles Destroyed 24 | . 5 . 14 . 5 Melee 1 | . . . 1 . . Guns 5 | . 3 . 2 . . Cannons 6 | . . . 1 . 5 AOE 12 | . 2 . 10 . . Classes Destroyed 12 | . 5 . 3 1 3 Worker 7 | . 3 . 4 . . Builder 4 | . 1 . 3 . . Tunneler 2 | . . . . 2 . Hauler 1 | . 1 . . . . Recycler 1 | . . . . . 1 Mechanic 2 | . . . 1 . 1 Watcher 3 | . 2 . . . 1 Swarmer 10 | . . . 10 . . Grunt 6 | . 5 . 1 . . Sentry 5 | . . . 3 . 2 Specialist 2 | . . . . . 2 Heavy 1 | . . . . . 1 Best Kill Streak 6 | . 3 . 6 1 4 Combat Bots Only 5 | . 2 . 5 . 2 Max Kills in Single Turn 4 | . 3 . 4 1 1 Gunslinging . | . . . . . . Exploded 2 | . 1 . 2 . . Melee 1 | . . . 1 . . Uniques/NPCs Destroyed . | . . . . . . Combat | -11 -10 -10 -9 -9 -8 -------- Run | Yrd Mat Min Mat Min Mat Hostile Shots Fired 221 | . 25 2 103 . 91 Missed 56 | . 5 1 24 . 26 Damage Taken 2720 | . 370 38 915 . 1397 Core 764 | . 72 . 140 . 552 Absorbed by Shields . | . . . . . . Redirected to Shielding 12 | . . . 12 . . Core Remaining (%) 78 | 100 . 71 . 65 . Volleys Fired 81 | 1 25 . 28 . 27 Largest 2 | 2 2 . 2 . 2 Hottest 108 | 60 60 . 108 . 96 Shots Fired 129 | 2 45 . 33 . 49 Gun 55 | 2 37 . 9 . 7 Cannon 49 | . . . 7 . 42 Launcher 25 | . 8 . 17 . . Special . | . . . . . . Kinetic 81 | 1 32 . 1 . 47 Thermal 17 | . . . 15 . 2 Explosive 25 | . 8 . 17 . . Electromagnetic 6 | 1 5 . . . . Robot Hit Streak 9 | 2 9 . 5 . 7 Robot Miss Streak 5 | . 2 . 3 . 5 Penetration Max 1 | . . . . . 1 Secondary Targets . | . . . . . . Shots Hit Robots 87 | 2 33 . 22 2 28 Core Hits 61 | 1 22 . 25 1 12 Critical Kills . | . . . . . . Critical Parts Destroyed 4 | . . . 3 . 1 Critical Strikes 7 | . . . 3 . 4 Destroy 1 | . . . . . 1 Blast 3 | . . . . . 3 Smash 3 | . . . 3 . . Melee Attacks 7 | . . . 5 2 . Impact 7 | . . . 5 2 . Slashing . | . . . . . . Piercing . | . . . . . . Sneak Attacks 5 | . . . 3 2 . Combat Hostiles . | . . . . . . Follow-up Attacks . | . . . . . . Damage Inflicted 3370 | 19 805 . 1561 135 850 Guns 432 | 19 249 . 47 . 117 Cannons 794 | . . . 61 . 733 Explosions 1710 | . 556 . 1154 . . Melee 434 | . . . 299 135 . Ramming . | . . . . . . Kinetic 1050 | 6 194 . . . 850 Thermal 289 | . 181 . 108 . . Explosive 1529 | . 375 . 1154 . . Electromagnetic 68 | 13 55 . . . . Impact 434 | . . . 299 135 . Slashing . | . . . . . . Piercing . | . . . . . . Highest Corruption . | . . . . . . Average Corruption . | . . . . . . Corruption Purged . | . . . . . . Corruption Blocked . | . . . . . . Overload Shots . | . . . . . . Overflow Damage 285 | . 8 . 263 14 . Projectiles . | . . . . . . Explosions 26 | . 8 . 18 . . Melee 259 | . . . 245 14 . Knockbacks 5 | . . . . 1 4 Impact 1 | . . . . 1 . Kinetic 4 | . . . . . 4 Secondary . | . . . . . . Self-Inflicted Damage 36 | . 25 . 11 . . Shots 3 | . 2 . 1 . . Rammed . | . . . . . . Targets Rammed . | . . . . . . Kicked . | . . . . . . Crushed . | . . . . . . Highest Temperature 231 | 20 64 . 104 . 231 Average Temperature 65 | 15 20 . 30 . 100 Received Heat Transfer 576 | . 159 . 210 . 207 Siege Activations . | . . . . . . Robots Corrupted . | . . . . . . Combat Hostiles . | . . . . . . Parts Fried 6 | . . . 4 2 . Impact Corruptions 7 | . . . 6 1 . Robots Melted . | . . . . . . Combat Hostiles . | . . . . . . Parts Melted . | . . . . . . Heat Transferred 311 | . 100 . 211 . . Parts Sabotaged . | . . . . . . Parts Stolen . | . . . . . . Parts Stripped . | . . . . . . Power Chain Reactions 1 | . 1 . . . . Alert | -11 -10 -10 -9 -9 -8 ------- Run | Yrd Mat Min Mat Min Mat Peak Influence 399 | . 118 36 399 111 238 Initial 101 | . . 36 5 101 35 Average 112 | . 44 32 246 109 125 Maximum Alert Level 1 | . . . 1 . 1 Low Security (%) 81 | 100 100 100 34 100 84 Level 1 18 | . . . 65 . 15 Level 2 . | . . . . . . Level 3 . | . . . . . . Level 4 . | . . . . . . Level 5 . | . . . . . . High Security . | . . . . . . Max Security . | . . . . . . Squads Dispatched 2 | . . . . . 2 Investigation . | . . . . . . Extermination . | . . . . . . Reinforcement 2 | . . . . . 2 Assault . | . . . . . . Garrison . | . . . . . . Intercept . | . . . . . . Searches Triggered . | . . . . . . Construction Impeded . | . . . . . . Haulers Reinforced . | . . . . . . Active Scanning Responses . | . . . . . . Cargo Convoy Interrupts . | . . . . . . Stealth | -11 -10 -10 -9 -9 -8 --------- Run | Yrd Mat Min Mat Min Mat Distress Signals 2 | . 2 . . . . Communications Jammed . | . . . . . . Distress Signals . | . . . . . . Times Spotted 39 | . 12 1 17 . 9 Peak Tracking Total 5 | . 3 1 5 . 4 Tactical Retreats 5 | . 3 1 1 . . Traps | -11 -10 -10 -9 -9 -8 ------- Run | Yrd Mat Min Mat Min Mat Traps Triggered 2 | . 2 . . . . Indirectly . | . . . . . . Trap Hack Attempts . | . . . . . . Triggered . | . . . . . . Disarmed . | . . . . . . Reprogrammed . | . . . . . . Reused . | . . . . . . Traps Extracted . | . . . . . . Installed . | . . . . . . Triggered . | . . . . . . Machines | -11 -10 -10 -9 -9 -8 ---------- Run | Yrd Mat Min Mat Min Mat Machines Disabled 1 | . . . . . 1 Max in Single Turn 1 | . . . . . 1 Machines Repaired . | . . . . . . Machines Dismantled . | . . . . . . Machines Sabotaged . | . . . . . . Overloaded Fab Kills . | . . . . . . Hacking | -11 -10 -10 -9 -9 -8 --------- Run | Yrd Mat Min Mat Min Mat Machines Accessed 2 | . 1 . 1 . . Terminals 1 | . . . 1 . . Fabricators . | . . . . . . Repair Stations 1 | . 1 . . . . Recycling Units . | . . . . . . Scanalyzers . | . . . . . . Garrison Access . | . . . . . . Total Hacks 2 | . 1 . 1 . . Successful 2 | . 1 . 1 . . Failed . | . . . . . . Catastrophic . | . . . . . . Database Lockouts . | . . . . . . Manual 1 | . 1 . . . . Terminals 1 | . . . 1 . . Fabricators . | . . . . . . Repair Stations 1 | . 1 . . . . Recycling Units . | . . . . . . Scanalyzers . | . . . . . . Garrison Access . | . . . . . . Terminal Hacks 1 | . . . 1 . . Record 1 | . . . 1 . . Fabricator Hacks . | . . . . . . Repair Station Hacks 1 | . 1 . . . . Scan Component 1 | . 1 . . . . Recycling Unit Hacks . | . . . . . . Scanalyzer . | . . . . . . Garrison Access Hacks . | . . . . . . Unauthorized Hacks . | . . . . . . Terminals . | . . . . . . Fabricators . | . . . . . . Repair Stations . | . . . . . . Recycling Units . | . . . . . . Scanalyzers . | . . . . . . Garrison Access . | . . . . . . Data Cores Recovered . | . . . . . . Used . | . . . . . . Hacking Detections 1 | . 1 . . . . Full Trace Events . | . . . . . . Feedback Events . | . . . . . . Feedback Blocked . | . . . . . . Robot Schematics Acquired . | . . . . . . Robots Built . | . . . . . . Authchips . | . . . . . . Time . | . . . . . . Total Robot Build Rating . | . . . . . . Part Schematics Acquired . | . . . . . . Parts Built . | . . . . . . Authchips . | . . . . . . Time . | . . . . . . Total Part Build Rating . | . . . . . . Parts Repaired . | . . . . . . Time . | . . . . . . Parts Recycled . | . . . . . . Recycled Matter . | . . . . . . Retrieved Matter . | . . . . . . Retrieved Components . | . . . . . . Parts Scanalyzed . | . . . . . . Part Schematics Acquired . | . . . . . . Parts Damaged . | . . . . . . Bothacking | -11 -10 -10 -9 -9 -8 ------------ Run | Yrd Mat Min Mat Min Mat Used RIF Installer . | . . . . . . Robots Hacked . | . . . . . . Non-combat . | . . . . . . Combat . | . . . . . . Robot Hacks Applied . | . . . . . . Relay Couplers Released . | . . . . . . Fabnet Peak Effective % . | . . . . . . Robots Rewired . | . . . . . . Allies Hacked . | . . . . . . Hacks Repelled . | . . . . . . Allies | -11 -10 -10 -9 -9 -8 -------- Run | Yrd Mat Min Mat Min Mat Total Allies 3 | . . . . 3 . Largest Group 3 | . . . . 3 2 Highest-Rated Group 40 | . . . . 40 32 Highest-Rated Ally 16 | . . . . 16 16 Total Orders 6 | . . . . 6 . ROAM 1 | . . . . 1 . GUARD 4 | . . . . 4 . AID 1 | . . . . 1 . Ally Attacks 31 | . . . . 1 30 Total Damage 324 | . . . . 11 313 Kills 4 | . . . . . 4 Allies Corrupted . | . . . . . . Allies Melted . | . . . . . . Intel | -11 -10 -10 -9 -9 -8 ------- Run | Yrd Mat Min Mat Min Mat Robot Analysis Total . | . . . . . . Derelict Logs Recovered 1 | . . 1 . . . Drone Launches . | . . . . . . Drone Recoveries . | . . . . . . Exploration | -11 -10 -10 -9 -9 -8 ------------- Run | Yrd Mat Min Mat Min Mat Turns Passed 2646 | 81 714 459 675 354 363 Spaces Moved 1417 | 73 340 284 316 212 192 Core 14 | 13 . . . . 1 Treads 997 | . 83 284 316 212 102 Legs . | . . . . . . Wheels 393 | 60 244 . . . 89 Hover 13 | . 13 . . . . Flight . | . . . . . . Fastest Speed 50 | 50 100 160 160 160 95 Average Speed 145 | 91 120 160 170 160 132 Slowest Speed 600 | 100 245 160 240 160 600 Overloaded Moves . | . . . . . . Propulsion Burnouts . | . . . . . . Robots Hopped . | . . . . . . Cave-ins Triggered . | . . . . . . Exploration Rate (%) 29 | 4 23 52 24 56 16 Regions Visited 5 Branch Regions 2 Pre-discovered Areas 1 | . . 1 . . . Known Exits Taken . | . . . . . . Unknown Exits Taken 5 | 1 1 1 1 1 . Scrap Searched 2 | . . 1 . 1 . Spaces Dug . | . . . . . . Terrain Destroyed 172 | . 69 . 97 . 6 Melee . | . . . . . . Projectile 6 | . . . . . 6 AOE 166 | . 69 . 97 . . Terrain Rammed . | . . . . . . Walls Destroyed . | . . . . . . Machines Disabled . | . . . . . . Actions | -11 -10 -10 -9 -9 -8 --------- Run | Yrd Mat Min Mat Min Mat Total 1878 | 82 609 290 417 224 256 Wait 239 | . 211 . 17 1 10 Move 1412 | 72 339 283 315 211 192 Hop . | . . . . . . Pick Up 35 | 2 10 2 11 4 6 Fast Attach 17 | 6 3 . 6 . 2 Attach 36 | . 11 2 13 3 7 Detach 22 | . 8 2 8 . 4 Swap 5 | 1 . . 3 . 1 Drop 24 | . 2 1 11 3 7 Fire 81 | 1 25 . 28 . 27 Melee 7 | . . . 5 2 . Ram . | . . . . . . Kick . | . . . . . . Crush . | . . . . . . Escape Stasis . | . . . . . . Rewire . | . . . . . . Trap . | . . . . . . Miscellaneous . | . . . . . . Route ------- -11/Scrapyard -10/Materials -10/Mines -9/Materials -9/Mines -8/Materials (discovered 1 exit: [*Fac]) History --------- Turn | Location | Event 21 | -11/Scrapyard | Discovered new exit (range 15) 82 | -11/Scrapyard | Entered Materials 119 | -10/Materials | Discovered new exit (range 15) 317 | -10/Materials | Build established: Mutant 796 | -10/Materials | Entered Mines 1099 | -10/Mines | Discovered new exit (range 15) 1103 | -10/Mines | Received a Rocket Launcher from a helpful Derelict 1255 | -10/Mines | Entered Materials 1255 | -9/Materials | Evolved 2 slots: Power x1, Utility x1 1472 | -9/Materials | Lost 3 parts (1p1n1u) 1774 | -9/Materials | Build established: Scavenger-Mutant 1892 | -9/Materials | Discovered new exit (range 12) 1930 | -9/Materials | Entered Mines 1933 | -9/Mines | Lost 3 parts (2p1w) 1990 | -9/Mines | Assisted by bots powering up and referring to "LRC-V3" 2125 | -9/Mines | Build established: Mutant 2255 | -9/Mines | Discovered new exit (range 13) 2284 | -9/Mines | Entered Materials 2284 | -8/Materials | Accompanied by 2 allies 2284 | -8/Materials | Evolved 2 slots: Power x1, Propulsion x1 2563 | -8/Materials | Discovered new exit (range 11) 2606 | -8/Materials | Core integrity fell below 50% 2628 | -8/Materials | Core integrity fell below 20% 2647 | -8/Materials | Destroyed by H-55 Commando with Gauss Rifle Last Messages --------------- Slug penetrates X-62 Marksman. K-01 Serf collects debris. Slug penetrates R-06 Scavenger. R-06 Scavenger suffers critical hit (Destroy). Destroyed Lgt. Ion Engine. Slug penetrates Wall. Penetrated by Slug. K-01 Serf collects debris. Slug penetrates R-06 Scavenger. R-06 Scavenger destroyed. Penetrated by Slug. H-55 Commando Lgt. Nuclear Core blasted off. Penetrated by Slug. Slug penetrates Wall. X-62 Marksman Imp. Cooling System blasted off. X-62 Marksman destroyed. Slug penetrates Wall. Adv. Assault Cannon destroyed. Slug penetrates H-55 Commando. Penetrated by Slug. Map ----- +----------------------------------------------------+ | ?????????????????????????????? # #?????????????? | | ?????????????????????????????? # #?????????????? | | ???????????????????????????????+ #?????????????? | | ???????????????????????????????# #?????????????? | | ???????????????????????????????# #?????????????? | | ??????????????????????????????## ##????????????? | | ??????????????????????????????# ############## | | ??????????????????????????????# | | ??????????????????????????????# | | ??????????????????????????????# | | ??????????????????????? ????# ############## | | ?????????????????????? ????# ###????????????# | | ?????????????????????? ! ????# ##########?????# | | ?????????????????????? ????# ## #?????# | | ?????????????????????? #???# ## " #?????# | | ??????????????????????? #???# ## ""#?????# | | ??????????????????????? #??## ## ""#?????# | | ??????????????????????? *#??# # """#?????# | | ??????????????????????? #### # "" #?????? | | ???????????????????#####/ ;#;# + """#?????? | | ???????????????????#! **; # """#?????? | | ???????????????????# *# # """#?????? | | ???????????????????# ;# ## " #?????? | | ???????????????????# ## ## #?????? | | ???????????????????# % ;# ##########?????? | | ???????????????????# @ ## #??????????????? | | ???????????????????# ## #??????????????? | | ???????????????????# =%! ## #?# #??????????? | | ????????????????###### * ###### # #??????????? | | ????????????????#%!%%! # #??????????? | | ????????????????# !%h%%% #??????????? | | ????????????????#=!!%!! # ##???????????? | | ?????????????# =%|%!%########### ###????????????? | | ?????????????# #!%=#;#????????##=#??????????????? | | ?????????????##?#%! #????????####/####???????????? | | ????????????????; #????????# !! #???????????? | | ??????????????? # #????????# +???????????? | | ????????????????# #????????# #???????????? | | ????????????????# #????????# #???????????? | | ????????????????+ +????????# #???????????? | | ????????????????# ?????????# #???????????? | | ????????????????# < ?????????# #???????????? | | ????????????????# ?????????# #???????????? | | ????????????????####?????????# #???????????? | | ?????????????????????????????# #???????????? | | ?????????????????????????????# #???????????? | | ?????????????????????????????#########???????????? | | ?????????????????????????????????????????????????? | | ?????????????????????????????????????????????????? | | ?????????????????????????????????????????????????? | +----------------------------------------------------+ Best States ------------- Heat Dissipation 31 Energy Generation 22 Energy Capacity 160 Matter Stores 266 Matter Capacity 300 Sight Range 16 Robot Scan Range 14 Terrain Scan Density 10 ECM Strength 1 Armor Coverage 225 Weapon Shielding 33 Evasion (%) 41 Recoil Reduction 2 Item Schematics ----------------- None Robot Schematics ------------------ None Fabricated ------------ Nothing Alien Tech Used ----------------- None Achievements -------------- None Challenges ------------ None Game ------ Seed DecoderSpacefoldSheargun Manual? 0 Play Time 01:10:48 Cumulative 17.8 hours Start 2024.04.15 @ 22:17:12 End 2024.04.15 @ 23:38:03 Sessions 1 Manual Loads 0 Difficulty Rogue Special Mode None Game No. 30 Rogue 30 Adventurer 0 Explorer 0 Win Type - Total 0 Types 0/0/0/0/0/0/0/0/0 Lore% 15 Gallery% 22 Achievement% 18 Wizard Run 0 Options --------- Layout 1 ASCII 0 Keyboard 0 Movement Mouse Keybinds 0 Fullscreen 2 Font 24/Smallcaps Map View 50x35 Zoom Use 1% Tactical HUD 0 Map Filters NONE Filters NONE Steam 1 RUN: 289fdd9c-b4c6-4dd2-a389-73ebb0e4b4a9